bitfinex-derivatives/quotes_BTCF0:USTF0_20250720
["timestamp","ask_amount","ask_price","bid_price","bid_amount"]
[1753026849743,0.2782508,118820.0,118810.0,1.81710514]
[1753026850149,0.2782513,118820.0,118810.0,1.81710514]
[1753026854054,0.3677513,118820.0,118810.0,1.81710514]
[1753026856355,0.4137013,118820.0,118810.0,1.81710514]
[1753026856760,0.4137013,118820.0,118810.0,1.4958769]
[1753026856959,0.4137013,118820.0,118810.0,1.81710514]
[1753026858157,0.3677513,118820.0,118810.0,1.81710514]
[1753026858460,0.3677513,118820.0,118810.0,1.4958769]
[1753026858860,0.3677513,118820.0,118810.0,1.81710514]
[1753026862366,0.4137013,118820.0,118810.0,1.81710514]
[1753026862759,0.3677513,118820.0,118810.0,1.4958769]
[1753026862957,0.4137013,118820.0,118810.0,1.4958769]
[1753026863162,0.5069013,118820.0,118810.0,1.81710514]
[1753026863863,0.5069013,118820.0,118810.0,1.4958769]
[1753026864064,0.5069013,118820.0,118810.0,1.81710514]
[1753026865766,0.5069013,118820.0,118810.0,1.4958769]
[1753026865965,0.5069013,118820.0,118810.0,1.81710514]
[1753026866666,0.5069013,118820.0,118810.0,1.19258514]
[1753026866864,0.5069013,118820.0,118810.0,1.4872769]
[1753026867063,0.5069013,118820.0,118810.0,1.80850514]
[1753026867864,0.5079013,118820.0,118810.0,1.381015]
[1753026868062,0.5079013,118820.0,118810.0,0.59683]
[1753026868364,0.5079013,118820.0,118810.0,1.15848952]
[1753026868560,0.5079013,118820.0,118810.0,1.23378793]
[1753026868761,0.68824795,118820.0,118810.0,0.07529841]
[1753026869067,0.88843383,118820.0,118810.0,0.85107253]
[1753026869367,0.88743383,118820.0,118810.0,0.85107253]
[1753026869571,0.88843383,118820.0,118810.0,0.85107253]
[1753026870069,0.8697013,118820.0,118810.0,0.85107253]
[1753026870265,0.8707013,118820.0,118810.0,0.77577412]
[1753026870465,0.8707013,118820.0,118810.0,0.61516]
[1753026871066,0.8707013,118820.0,118810.0,0.77577412]
[1753026871365,0.8707013,118820.0,118810.0,0.83598682]
[1753026871666,0.8707013,118820.0,118810.0,0.77577412]
[1753026871865,0.8707013,118820.0,118810.0,0.83598716]
[1753026872258,0.8707013,118820.0,118810.0,0.67537304]
[1753026872464,0.8707013,118820.0,118810.0,0.83598716]
[1753026873267,1.03231542,118820.0,118810.0,0.83598716]
[1753026873969,1.03231542,118820.0,118810.0,0.86625716]
[1753026874368,0.8717013,118820.0,118810.0,0.86625716]
[1753026874558,0.8717013,118820.0,118810.0,0.70564304]
[1753026874964,0.8717013,118820.0,118810.0,0.91269716]
[1753026875670,0.5109013,118820.0,118810.0,0.91269716]
[1753026877670,0.5109013,118820.0,118810.0,0.95762716]
[1753026877870,0.8717013,118820.0,118810.0,0.95762716]
[1753026878073,0.8717013,118820.0,118810.0,0.89741412]
[1753026878365,0.8717013,118820.0,118810.0,0.95758064]
[1753026878871,0.5109013,118820.0,118810.0,0.95758064]
[1753026879073,1.03231542,118820.0,118810.0,0.89741412]
[1753026879372,0.8717013,118820.0,118810.0,0.95758004]
[1753026879572,1.03231542,118820.0,118810.0,0.95758004]
[1753026880267,0.67151542,118820.0,118810.0,0.95758004]
[1753026880665,1.03231542,118820.0,118810.0,0.95758004]
[1753026880865,0.67151542,118820.0,118810.0,0.95758004]
[1753026881267,0.67151542,118820.0,118810.0,1.03836004]
[1753026881668,0.5109013,118820.0,118810.0,1.03836004]
[1753026883272,0.5109013,118820.0,118810.0,0.97819412]
[1753026885075,0.5109013,118820.0,118810.0,1.33899412]
[1753026885277,0.5109013,118820.0,118810.0,1.17838]
[1753026885473,0.5109013,118820.0,118810.0,0.97819412]
[1753026885775,0.4612613,118820.0,118810.0,0.99867412]
[1753026886072,0.5093013,118820.0,118810.0,1.35947412]
[1753026886277,0.5093013,118820.0,118810.0,1.52008824]
[1753026886477,0.5093013,118820.0,118810.0,1.15928824]
[1753026886674,0.5093013,118820.0,118810.0,0.99867412]
[1753026887275,0.5093013,118820.0,118810.0,0.90801412]
[1753026888876,0.5093013,118820.0,118810.0,0.7474]
[1753026889077,0.5093013,118820.0,118810.0,0.90801412]
[1753026889981,0.3937654,118810.0,118800.0,0.94824239]
[1753026890180,0.8645654,118810.0,118800.0,0.94824239]
[1753026890382,1.02517952,118810.0,118800.0,0.94824239]
[1753026890981,1.02517952,118810.0,118800.0,0.87294398]
[1753026891681,1.02617952,118810.0,118800.0,0.91938398]
[1753026892284,0.66637952,118810.0,118800.0,0.91938398]
[1753026892484,1.02717952,118810.0,118800.0,0.75876986]
[1753026892781,0.8665654,118810.0,118800.0,0.91938398]
[1753026892982,1.02717952,118810.0,118800.0,0.91938398]
[1753026893182,1.02717952,118810.0,118800.0,0.40949467]
[1753026893381,1.02717952,118810.0,118800.0,1.02445467]
[1753026893982,1.02717952,118810.0,118800.0,0.96427398]
[1753026895083,0.8665654,118810.0,118800.0,0.96427398]
[1753026895284,1.02717952,118810.0,118800.0,0.96427398]
[1753026896285,1.02717952,118810.0,118800.0,1.02445467]
[1753026898589,1.02717952,118810.0,118800.0,1.08934467]
[1753026899086,0.8665654,118810.0,118800.0,1.08934467]
[1753026899287,1.02717952,118810.0,118800.0,1.08934467]
[1753026900884,1.02717952,118810.0,118800.0,0.92873055]
[1753026901082,1.02717952,118810.0,118800.0,1.08934467]
[1753026901283,1.02717952,118810.0,118800.0,0.92873055]
[1753026901488,0.8665654,118810.0,118800.0,1.08934467]
[1753026901989,1.02717952,118810.0,118800.0,1.08934467]
[1753026902183,1.02717952,118810.0,118800.0,0.93897055]
[1753026902380,1.02717952,118810.0,118800.0,1.09958467]
[1753026902579,1.02717952,118810.0,118800.0,0.93897055]
[1753026902780,1.02717952,118810.0,118800.0,1.09958467]
[1753026903794,0.8665654,118810.0,118800.0,1.09958467]
[1753026903990,1.02717952,118810.0,118800.0,1.09958467]
[1753026904798,1.02717952,118810.0,118800.0,0.93897055]
[1753026904993,1.02717952,118810.0,118800.0,1.09958467]
[1753026905791,0.8665654,118810.0,118800.0,1.09958467]
[1753026905998,1.02717952,118810.0,118800.0,1.09958467]
[1753026907199,1.02717952,118810.0,118800.0,0.93897055]
[1753026907897,1.02717952,118810.0,118800.0,1.09958467]
[1753026908195,0.8665654,118810.0,118800.0,1.09958467]
[1753026908400,1.02717952,118810.0,118800.0,1.09958467]
[1753026908800,1.02717952,118810.0,118800.0,0.93897055]
[1753026909002,1.02717952,118810.0,118800.0,1.09958467]
[1753026909194,1.02717952,118810.0,118800.0,0.93897055]
[1753026909600,0.8665654,118810.0,118800.0,0.93897055]
[1753026909800,1.02717952,118810.0,118800.0,0.93897055]
[1753026910000,0.8665654,118810.0,118800.0,0.93897055]
[1753026910305,1.02717952,118810.0,118800.0,1.09958467]
[1753026910697,0.8665654,118810.0,118800.0,0.87878986]
[1753026910900,1.02717952,118810.0,118800.0,1.03940398]
[1753026911301,1.02717952,118810.0,118800.0,0.87878986]
[1753026911504,1.02717952,118810.0,118800.0,1.03940398]
[1753026911799,1.02717952,118810.0,118800.0,0.87878986]
[1753026912004,1.02717952,118810.0,118800.0,1.03940398]
[1753026912694,1.02717952,118810.0,118800.0,1.05912398]
[1753026913101,1.02717952,118810.0,118800.0,1.03940398]
[1753026913299,0.8665654,118810.0,118800.0,1.03940398]
[1753026913499,1.02717952,118810.0,118800.0,0.87878986]
[1753026913907,0.8665654,118810.0,118800.0,1.03940398]
[1753026914106,1.02717952,118810.0,118800.0,1.03940398]
[1753026914704,1.02717952,118810.0,118800.0,0.87878986]
[1753026915006,1.02717952,118810.0,118800.0,1.03940398]
[1753026915407,1.02717952,118810.0,118800.0,0.87878986]
[1753026915907,1.02717952,118810.0,118800.0,1.03940398]
[1753026915908,0.8665654,118810.0,118800.0,1.03940398]
[1753026916108,1.02717952,118810.0,118800.0,1.03940398]
[1753026916308,1.02717952,118810.0,118800.0,0.87878986]
[1753026916608,1.02717952,118810.0,118800.0,1.03940398]
[1753026916912,1.02717952,118810.0,118800.0,0.87878986]
[1753026917110,1.02717952,118810.0,118800.0,1.03940398]
[1753026917111,0.8665654,118810.0,118800.0,1.03940398]
[1753026917312,1.02717952,118810.0,118800.0,1.09958467]
[1753026918017,0.8665654,118810.0,118800.0,1.09958467]
[1753026918218,1.02717952,118810.0,118800.0,1.09958467]
[1753026919619,1.02717952,118810.0,118800.0,0.93897055]
[1753026919810,1.02717952,118810.0,118800.0,1.09958467]
[1753026920410,0.8665654,118810.0,118800.0,1.09958467]
[1753026920610,1.02717952,118810.0,118800.0,1.09958467]
[1753026920926,0.8665654,118810.0,118800.0,0.93897055]
[1753026921122,1.02717952,118810.0,118800.0,1.09958467]
[1753026922321,0.8665654,118810.0,118800.0,1.09958467]
[1753026922923,1.02717952,118810.0,118800.0,1.09958467]
[1753026924020,0.8665654,118810.0,118800.0,1.09958467]
[1753026924223,1.02717952,118810.0,118800.0,1.09958467]
[1753026924626,1.02717952,118810.0,118800.0,1.03940398]
[1753026924821,0.8665654,118810.0,118800.0,1.03940398]
[1753026925123,1.02717952,118810.0,118800.0,1.09967145]
[1753026925920,1.02717952,118810.0,118800.0,0.93905733]
[1753026926122,1.02717952,118810.0,118800.0,1.09967145]
[1753026927924,0.8665654,118810.0,118800.0,1.09967145]
[1753026928116,1.02717952,118810.0,118800.0,1.09967145]
[1753026928719,1.02717952,118810.0,118800.0,0.93905733]
[1753026929229,0.8665654,118810.0,118800.0,1.09967145]
[1753026929528,1.02717952,118810.0,118800.0,1.09967145]
[1753026929930,1.02717952,118810.0,118800.0,0.93905733]
[1753026930130,1.02717952,118810.0,118800.0,1.09967145]
[1753026931030,1.02717952,118810.0,118800.0,1.03940398]
[1753026932234,0.8665654,118810.0,118800.0,1.03940398]
[1753026932434,1.02717952,118810.0,118800.0,1.03940398]
[1753026933133,1.02717952,118810.0,118800.0,0.87878986]
[1753026933432,1.02717952,118810.0,118800.0,1.03940398]
[1753026934334,1.02717952,118810.0,118800.0,1.03261405]
[1753026934632,0.8665654,118810.0,118800.0,1.03261405]
[1753026934832,1.02717952,118810.0,118800.0,0.87199993]
[1753026935034,1.02717952,118810.0,118800.0,1.03261405]
[1753026935532,1.02717952,118810.0,118800.0,0.97234412]
[1753026935732,1.02717952,118810.0,118800.0,0.87199782]
[1753026936237,1.02717952,118810.0,118800.0,0.81173]
[1753026940033,1.02717952,118810.0,118800.0,0.19677]
[1753026941637,1.02717952,118810.0,118800.0,0.07671]
[1753026942139,1.02717952,118810.0,118800.0,0.12159]
[1753026944238,1.02717952,118810.0,118800.0,0.03027]
[1753026945243,0.2524695,118800.0,118790.0,0.94107205]
[1753026945439,1.20277195,118800.0,118790.0,0.94107205]
[1753026945742,0.88154371,118800.0,118790.0,0.94107205]
[1753026945939,1.04215783,118800.0,118790.0,0.94107205]
[1753026946339,1.04215783,118800.0,118790.0,0.88080415]
[1753026946544,0.88154371,118800.0,118790.0,0.95610256]
[1753026946839,1.04215783,118800.0,118790.0,0.95610256]
[1753026947045,1.04215783,118800.0,118790.0,1.11671668]
[1753026947343,1.04215783,118800.0,118790.0,1.11663668]
[1753026947734,0.8625895,118800.0,118790.0,1.11663668]
[1753026947940,1.02320362,118800.0,118790.0,1.11663668]
[1753026948339,0.8625895,118800.0,118790.0,1.11663668]
[1753026948544,1.02320362,118800.0,118790.0,1.04133827]
[1753026948745,1.02320362,118800.0,118790.0,1.11663668]
[1753026949452,1.04232348,118800.0,118790.0,0.95602256]
[1753026949641,1.04232348,118800.0,118790.0,1.04133827]
[1753026949941,1.04232348,118800.0,118790.0,1.06032827]
[1753026950147,1.04232348,118800.0,118790.0,1.13562668]
[1753026951140,1.04232348,118800.0,118790.0,1.11663668]
[1753026951840,1.04232348,118800.0,118790.0,1.13562668]
[1753026952042,0.88170936,118800.0,118790.0,1.13562668]
[1753026952341,1.04232348,118800.0,118790.0,1.13562668]
[1753026952644,1.04232348,118800.0,118790.0,1.04133827]
[1753026953243,1.04232348,118800.0,118790.0,1.11663668]
[1753026953449,1.04232348,118800.0,118790.0,1.04133827]
[1753026953748,1.04232348,118800.0,118790.0,0.89971415]
[1753026953950,1.04232348,118800.0,118790.0,1.06032827]
[1753026954748,1.04232348,118800.0,118790.0,0.89971415]
[1753026954949,1.04232348,118800.0,118790.0,1.06032827]
[1753026955847,1.04232348,118800.0,118790.0,0.89971415]
[1753026956049,1.04232348,118800.0,118790.0,1.06032827]
[1753026956549,0.88170936,118800.0,118790.0,1.06032827]
[1753026956948,1.04232348,118800.0,118790.0,1.06032827]
[1753026958152,1.04232348,118800.0,118790.0,0.44628827]
[1753026958448,1.04232348,118800.0,118790.0,1.06012827]
[1753026961654,1.04232348,118800.0,118790.0,1.04113827]
[1753026962057,1.04232348,118800.0,118790.0,1.05968827]
[1753026962856,1.04232348,118800.0,118790.0,0.44584827]
[1753026963057,1.04232348,118800.0,118790.0,1.04093827]
[1753026964248,1.04232348,118800.0,118790.0,0.89887415]
[1753026964447,1.04232348,118800.0,118790.0,1.05948827]
[1753026964758,1.04232348,118800.0,118790.0,0.89887415]
[1753026964957,1.04232348,118800.0,118790.0,1.05948827]
[1753026965553,0.3925736,118790.0,118780.0,0.03352301]
[1753026965760,0.3926019,118770.0,118760.0,0.1796219]
[1753026966050,0.1683361,118760.0,118750.0,0.1052619]
[1753026966255,1.19464434,118760.0,118750.0,0.05116405]
[1753026966458,1.19464434,118760.0,118750.0,0.72495912]
[1753026966654,1.19464434,118760.0,118750.0,0.06867912]
[1753026967259,0.8734161,118760.0,118750.0,0.06867912]
[1753026967460,1.19464434,118760.0,118750.0,0.21177817]
[1753026967861,1.03403022,118760.0,118750.0,0.21177817]
[1753026968064,1.03603022,118760.0,118750.0,0.21177817]
[1753026968560,1.03603022,118760.0,118750.0,0.05116405]
[1753026968760,1.03603022,118760.0,118750.0,0.21177817]
[1753026968962,0.8754161,118760.0,118750.0,0.21177817]
[1753026969358,1.03603022,118760.0,118750.0,0.21177817]
[1753026970660,1.03603022,118760.0,118750.0,0.05116405]
[1753026970852,1.03603022,118760.0,118750.0,0.21177817]
[1753026971764,1.03603022,118760.0,118750.0,0.25686236]
[1753026972164,1.19664434,118760.0,118750.0,0.05348824]
[1753026972663,1.19664434,118760.0,118750.0,0.21410236]
[1753026972862,1.03603022,118760.0,118750.0,0.21410236]
[1753026973160,0.2010045,118740.0,118730.0,0.06027507]
[1753026973465,0.3926586,118730.0,118720.0,1.20530412]
[1753026973657,0.5226586,118730.0,118720.0,1.20530412]
[1753026974259,0.4347286,118730.0,118720.0,1.37369692]
[1753026974462,0.2983786,118730.0,118720.0,1.37369692]
[1753026974763,0.2993786,118730.0,118720.0,1.69492516]
[1753026975963,0.2993786,118730.0,118720.0,1.8230201]
[1753026976367,0.3003786,118730.0,118720.0,1.83149102]
[1753026976768,0.2993786,118730.0,118720.0,1.83249102]
[1753026976964,0.3471286,118730.0,118720.0,1.83249102]
[1753026977165,0.3471286,118730.0,118720.0,1.6728769]
[1753026977364,0.3471286,118730.0,118720.0,1.6748769]
[1753026981167,0.3471286,118730.0,118720.0,1.35364866]
[1753026981367,0.3471286,118730.0,118720.0,1.6748769]
[1753026982263,0.17875,118730.0,118720.0,1.6748769]
[1753026982666,0.3471286,118730.0,118720.0,1.6748769]
[1753026983259,0.3471286,118730.0,118720.0,1.61482024]
[1753026983664,0.3471286,118730.0,118720.0,1.67485148]
[1753026983870,0.3471286,118730.0,118720.0,1.61482024]
[1753026984270,0.4146886,118730.0,118720.0,1.61482024]
[1753026984570,0.4347286,118730.0,118720.0,1.61482024]
[1753026984771,0.4347286,118730.0,118720.0,1.67485883]
[1753026985166,0.4347286,118730.0,118720.0,1.61482024]
[1753026985965,0.4347286,118730.0,118720.0,1.67486668]
[1753026986469,0.4347286,118730.0,118720.0,1.67487608]
[1753026986768,0.4347286,118730.0,118720.0,1.67487893]
[1753026987369,0.4347286,118730.0,118720.0,1.61482024]
[1753026992470,0.4347286,118730.0,118720.0,1.68991433]
[1753026992867,0.4347286,118730.0,118720.0,1.07651433]
[1753026993066,0.4347286,118730.0,118720.0,1.68935433]
[1753026995568,0.4347286,118730.0,118720.0,1.61426024]
[1753026995774,0.4347286,118730.0,118720.0,1.68969909]
[1753026996770,0.4347286,118730.0,118720.0,1.61426024]
[1753026998372,0.4347286,118730.0,118720.0,1.71952214]
[1753027000077,0.4347286,118730.0,118720.0,1.68972323]
[1753027002776,0.5242086,118730.0,118720.0,1.68972323]
[1753027003680,0.5242086,118730.0,118720.0,1.36849499]
[1753027003882,0.5242086,118730.0,118720.0,1.68972323]
[1753027006881,0.5242086,118730.0,118720.0,1.61426024]
[1753027008582,0.5242086,118730.0,118720.0,1.71952214]
[1753027008977,0.5242086,118730.0,118720.0,1.3982939]
[1753027009177,0.5242086,118730.0,118720.0,1.71952214]
[1753027009377,0.5242086,118730.0,118720.0,1.293032]
[1753027009574,0.5242086,118730.0,118720.0,1.61426024]
[1753027011086,0.5242086,118730.0,118720.0,1.61226024]
[1753027011287,0.5242086,118730.0,118720.0,1.61126024]
[1753027012282,0.5242086,118730.0,118720.0,1.68676037]
[1753027012689,0.68482272,118730.0,118720.0,0.88557625]
[1753027012889,0.68482272,118730.0,118720.0,1.12568933]
[1753027013088,1.04562272,118730.0,118720.0,0.6893892]
[1753027013287,1.20623684,118730.0,118720.0,0.68838728]
[1753027013892,1.04562272,118730.0,118720.0,0.68838728]
[1753027014094,1.04662272,118730.0,118720.0,0.61288]
[1753027014292,1.04662272,118730.0,118720.0,0.61188]
[1753027014491,1.04662272,118730.0,118720.0,0.68737708]
[1753027014992,1.04962272,118730.0,118720.0,0.68737708]
[1753027016494,1.04962272,118730.0,118720.0,0.61188]
[1753027016693,1.04962272,118730.0,118720.0,0.68737708]
[1753027017494,1.04962272,118730.0,118720.0,0.69602383]
[1753027017695,0.8890086,118730.0,118720.0,0.69602383]
[1753027017895,1.04962272,118730.0,118720.0,0.68737708]
[1753027018292,1.04962272,118730.0,118720.0,0.61188]
[1753027019191,1.04962272,118730.0,118720.0,0.62041506]
[1753027020296,1.04962272,118730.0,118720.0,0.61188]
[1753027020996,0.3892427,118720.0,118710.0,0.91378071]
[1753027021190,0.84047094,118720.0,118710.0,0.75316659]
[1753027021598,0.8800427,118720.0,118710.0,0.68705708]
[1753027021795,1.20127094,118720.0,118710.0,0.61156]
[1753027022987,1.20227094,118720.0,118710.0,0.61156]
[1753027023187,0.2535769,118710.0,118700.0,0.15055888]
[1753027023501,0.67885837,118710.0,118700.0,0.76199888]
[1753027024192,0.67885837,118710.0,118700.0,0.76299888]
[1753027025692,0.67885837,118710.0,118700.0,0.69643424]
[1753027026098,0.67885837,118710.0,118700.0,0.08499424]
[1753027026495,0.51824425,118710.0,118700.0,0.08499424]
[1753027026892,0.67885837,118710.0,118700.0,0.08499424]
[1753027027599,0.67885837,118710.0,118700.0,0.00949716]
[1753027028491,0.51824425,118710.0,118700.0,0.00949716]
[1753027028699,0.67885837,118710.0,118700.0,0.00949716]
[1753027029101,1.22028,118750.0,118730.0,0.0420916]
[1753027029302,0.7136641,118750.0,118740.0,2.46492912]
[1753027029500,0.24,118750.0,118740.0,2.46492912]
[1753027029804,0.3257967,118780.0,118770.0,0.1783119]
[1753027030006,0.4357967,118780.0,118770.0,1.88166113]
[1753027030198,0.2254,118780.0,118770.0,1.88166113]
[1753027030500,0.11,118780.0,118770.0,2.05004513]
[1753027030799,0.11,118780.0,118770.0,1.88166113]
[1753027031405,0.11,118780.0,118770.0,1.88366113]
[1753027031806,0.11,118780.0,118770.0,1.88166113]
[1753027032008,0.11,118780.0,118770.0,1.88566113]
[1753027032206,0.11,118780.0,118770.0,0.9230819]
[1753027032505,0.11,118780.0,118770.0,1.85535014]
[1753027032704,0.11,118780.0,118770.0,1.86377843]
[1753027033305,0.11,118780.0,118770.0,1.75686162]
[1753027033608,0.2783077,118780.0,118770.0,1.82562356]
[1753027034608,0.2783077,118780.0,118770.0,1.90112064]
[1753027034807,0.2783077,118780.0,118770.0,1.90312064]
[1753027035607,0.3937077,118780.0,118770.0,1.90312064]
[1753027035809,0.2254,118780.0,118770.0,1.90312064]
[1753027036509,0.2254,118780.0,118770.0,1.82762356]
[1753027037305,0.2254,118780.0,118770.0,1.88748916]
[1753027038604,0.1154,118790.0,118770.0,2.10186269]
[1753027038806,0.19661009,118800.0,118790.0,0.1682935]
[1753027039111,0.22661009,118800.0,118790.0,1.35404493]
[1753027039309,0.22661009,118800.0,118790.0,1.39889322]
[1753027039503,0.24689009,118800.0,118790.0,1.39889322]
[1753027042804,0.07555,118800.0,118790.0,1.61320465]
[1753027043004,0.03,118800.0,118790.0,1.73671636]
[1753027043202,0.03,118800.0,118790.0,1.79658196]
[1753027044707,0.03,118800.0,118790.0,1.63607196]
[1753027044908,0.03,118800.0,118790.0,1.67000196]
[1753027045308,0.03,118800.0,118790.0,1.61013636]
[1753027047213,0.07814,118800.0,118790.0,1.61013636]
[1753027047409,0.07814,118800.0,118790.0,1.01141636]
[1753027047616,0.07814,118800.0,118790.0,1.40746493]
[1753027047810,0.07814,118800.0,118790.0,0.85139493]
[1753027047811,0.21615,118800.0,118790.0,0.85139493]
[1753027048116,0.36207009,118800.0,118790.0,1.50648412]
[1753027048915,0.36207009,118800.0,118790.0,1.29217269]
[1753027049116,0.36207009,118800.0,118790.0,1.50648412]
[1753027050414,0.30964009,118800.0,118790.0,1.50648412]
[1753027050915,0.29736009,118800.0,118790.0,1.50648412]
[1753027051621,0.26626009,118800.0,118790.0,1.46175493]
[1753027051816,0.16097,118800.0,118790.0,1.46175493]
[1753027052117,0.07814,118800.0,118790.0,1.46175493]
[1753027053118,0.16097,118800.0,118790.0,1.46175493]
[1753027054620,0.3533293,118800.0,118790.0,1.46175493]
[1753027055815,0.3533293,118800.0,118790.0,1.2474435]
[1753027056016,0.4491393,118800.0,118790.0,1.46175493]
[1753027056213,0.53034939,118800.0,118790.0,1.46175493]
[1753027056512,0.53034939,118800.0,118790.0,0.64132143]
[1753027056712,0.53034939,118800.0,118790.0,1.41989493]
[1753027057318,0.53034939,118800.0,118790.0,1.47967473]
[1753027057815,0.53034939,118800.0,118790.0,1.48075473]
[1753027059922,0.53034939,118800.0,118790.0,1.0981498]
[1753027060324,0.53034939,118800.0,118790.0,1.31246123]
[1753027061414,0.53034939,118800.0,118790.0,1.25268143]
[1753027061622,0.53034939,118800.0,118790.0,1.2066635]
[1753027061815,0.53034939,118800.0,118790.0,1.03837]
[1753027062021,0.53034939,118800.0,118790.0,1.42097493]
[1753027062228,0.53034939,118800.0,118790.0,1.06017493]
[1753027062423,0.53034939,118800.0,118790.0,0.8458635]
[1753027062622,0.53034939,118800.0,118790.0,1.06017493]
[1753027063322,0.53034939,118800.0,118790.0,1.13489969]
[1753027064223,0.53034939,118800.0,118790.0,0.75229476]
[1753027064527,0.53034939,118800.0,118790.0,0.96660619]
[1753027064726,0.53034939,118800.0,118790.0,1.13489969]
[1753027065526,0.53034939,118800.0,118790.0,1.32740619]
[1753027065832,0.53034939,118800.0,118790.0,0.96660619]
[1753027066019,0.53034939,118800.0,118790.0,0.44744476]
[1753027066330,0.53034939,118800.0,118790.0,0.68504476]
[1753027066525,0.74466082,118800.0,118790.0,0.68504476]
[1753027067434,0.74466082,118800.0,118790.0,0.61032]
[1753027067626,0.53034939,118800.0,118790.0,0.67060979]
[1753027067828,0.74466082,118800.0,118790.0,0.67060979]
[1753027068132,0.89114939,118800.0,118790.0,0.67060979]
[1753027068335,0.53034939,118800.0,118790.0,0.67060979]
[1753027068524,0.53034939,118800.0,118790.0,0.61032]
[1753027068926,0.89114939,118800.0,118790.0,0.61032]
[1753027069334,0.89114939,118800.0,118790.0,0.67059901]
[1753027070029,1.02425073,118800.0,118790.0,0.67059901]
[1753027070233,1.10546082,118800.0,118790.0,0.67059901]
[1753027074328,1.10546082,118800.0,118790.0,0.06027901]
[1753027074534,1.10546082,118800.0,118790.0,0.61032]
[1753027075534,0.89114939,118800.0,118790.0,0.61032]
[1753027075735,1.10546082,118800.0,118790.0,0.61032]
[1753027076237,0.89114939,118800.0,118790.0,0.67059901]
[1753027076429,0.2664135,118790.0,118780.0,0.67059901]
[1753027076630,0.5301535,118790.0,118780.0,0.67059901]
[1753027076826,0.61136359,118790.0,118780.0,0.67059901]
[1753027077026,0.61136359,118790.0,118780.0,0.61032]
[1753027077332,0.61136359,118790.0,118780.0,0.67058909]
[1753027077532,0.61136359,118790.0,118780.0,0.67158909]
[1753027077733,0.61136359,118790.0,118780.0,0.61132]
[1753027078036,0.61136359,118790.0,118780.0,0.61332]
[1753027078837,0.61136359,118790.0,118780.0,0.67358597]
[1753027079031,0.82567502,118790.0,118780.0,0.67358597]
[1753027079232,1.18647502,118790.0,118780.0,0.67358597]
[1753027079432,0.97216359,118790.0,118780.0,0.67358597]
[1753027080534,1.18647502,118790.0,118780.0,0.67358597]
[1753027080739,0.82567502,118790.0,118780.0,0.67358597]
[1753027080936,0.61136359,118790.0,118780.0,0.73496597]
[1753027081135,0.61136359,118790.0,118780.0,1.45689913]
[1753027081439,0.61136359,118790.0,118780.0,1.53162379]
[1753027081830,0.61136359,118790.0,118780.0,1.36331619]
[1753027082039,0.4320335,118790.0,118780.0,1.53162379]
[1753027082241,0.2782935,118790.0,118780.0,1.53162379]
[1753027082445,0.07122,118790.0,118780.0,1.45689903]
[1753027082741,0.2395135,118790.0,118780.0,1.5322112]
[1753027083141,0.2395135,118790.0,118780.0,1.45689903]
[1753027083941,0.2395135,118790.0,118780.0,1.53222026]
[1753027084241,0.2395132,118790.0,118780.0,1.56151369]
[1753027089947,0.3932532,118790.0,118780.0,1.56151369]
[1753027090550,0.27958392,118790.0,118780.0,1.56151369]
[1753027090748,0.36958392,118790.0,118780.0,1.45689903]
[1753027091047,0.36958392,118790.0,118780.0,1.56237325]
[1753027091446,0.34606392,118790.0,118780.0,1.56237325]
[1753027092545,0.34606392,118790.0,118780.0,1.34806182]
[1753027092948,0.34606392,118790.0,118780.0,1.56237325]
[1753027094342,0.36958392,118790.0,118780.0,1.56237325]
[1753027095047,0.36958392,118790.0,118780.0,1.56209325]
[1753027095250,0.36958392,118790.0,118780.0,0.95205325]
[1753027095445,0.36958392,118790.0,118780.0,1.56205325]
[1753027095748,0.36958392,118790.0,118780.0,1.45657903]
[1753027097950,0.36958392,118790.0,118780.0,1.2422676]
[1753027098154,0.36958392,118790.0,118780.0,1.45657903]
[1753027098653,0.36958392,118790.0,118780.0,1.45645903]
[1753027100457,0.36958392,118790.0,118780.0,1.56195749]
[1753027100757,0.36958392,118790.0,118780.0,0.95207749]
[1753027100954,0.36958392,118790.0,118780.0,1.56191749]
[1753027101559,0.36958392,118790.0,118780.0,0.95207749]
[1753027101759,0.36958392,118790.0,118780.0,1.56191749]
[1753027102261,0.45527392,118790.0,118780.0,1.56191749]
[1753027103453,0.46770392,118790.0,118780.0,0.95207749]
[1753027103654,0.54891401,118790.0,118780.0,0.74498989]
[1753027103958,0.54891401,118790.0,118780.0,1.52305739]
[1753027107460,0.54891401,118790.0,118780.0,1.30874596]
[1753027107659,0.54891401,118790.0,118780.0,1.52305739]
[1753027108460,0.54891401,118790.0,118780.0,1.30874596]
[1753027108655,0.54891401,118790.0,118780.0,1.52305739]
[1753027109963,0.54891401,118790.0,118780.0,1.35474989]
[1753027110163,0.76322544,118790.0,118780.0,0.10849846]
[1753027110355,0.54891401,118790.0,118780.0,0.71805846]
[1753027110560,0.76322544,118790.0,118780.0,0.79350967]
[1753027110862,1.12402544,118790.0,118780.0,0.68801121]
[1753027111559,0.90971401,118790.0,118780.0,0.68801121]
[1753027111757,0.76322544,118790.0,118780.0,0.68801121]
[1753027113463,1.12402544,118790.0,118780.0,0.68801121]
[1753027114765,1.12402544,118790.0,118780.0,0.61256]
[1753027114967,1.13268111,118790.0,118780.0,0.61256]
[1753027116062,1.12402544,118790.0,118780.0,0.61256]
[1753027117258,0.76322544,118790.0,118780.0,0.61256]
[1753027117964,1.12402544,118790.0,118780.0,0.61256]
[1753027118163,1.12402544,118790.0,118780.0,0.67284688]
[1753027118757,1.12402544,118790.0,118780.0,0.61256]
[1753027118959,0.54891401,118790.0,118780.0,0.67284688]
[1753027119159,0.76322544,118790.0,118780.0,0.67284162]
[1753027119566,1.12402544,118790.0,118780.0,0.67284162]
[1753027120566,1.12402544,118790.0,118780.0,0.06328162]
[1753027120766,0.90971401,118790.0,118780.0,0.67264162]
[1753027121062,1.12402544,118790.0,118780.0,0.67264162]
[1753027121467,0.76322544,118790.0,118780.0,0.67264162]
[1753027121767,0.90971401,118790.0,118780.0,0.67264162]
[1753027121970,1.12402544,118790.0,118780.0,0.67264162]
[1753027124367,0.76322544,118790.0,118780.0,0.67264162]
[1753027124770,1.12402544,118790.0,118780.0,0.67264162]
[1753027125069,0.76322544,118790.0,118780.0,0.67264162]
[1753027125969,1.12402544,118790.0,118780.0,0.61236]
[1753027126668,0.90971401,118790.0,118780.0,0.61236]
[1753027127068,1.12402544,118790.0,118780.0,0.61236]
[1753027128367,0.76322544,118790.0,118780.0,0.61236]
[1753027129671,1.12402544,118790.0,118780.0,0.61236]
[1753027130167,1.12402544,118790.0,118780.0,0.68781121]
[1753027131777,0.90971401,118790.0,118780.0,0.61236]
[1753027132075,1.12402544,118790.0,118780.0,0.61236]
[1753027133376,1.12402544,118790.0,118780.0,0.68781121]
[1753027135277,0.90971401,118790.0,118780.0,0.68781121]
[1753027135575,1.12402544,118790.0,118780.0,0.68781121]
[1753027135776,0.90971401,118790.0,118780.0,0.68781121]
[1753027135971,1.19252317,118790.0,118780.0,0.68781121]
[1753027136470,1.19252317,118790.0,118780.0,0.07845121]